fUSD/lending_fUSD_20241006
["ID","MTS","AMOUNT","RATE_DAILY","PERIOD"]
[339958197,1728221555177,-800.0,0.00010233,2]
[339958198,1728221775318,234.3,0.00010126,2]
[339958199,1728221805182,200.0,0.00010113,2]
[339958200,1728221832565,150.0,0.00010093,2]
[339958201,1728221832586,66.99,0.00010093,2]
[339958202,1728221832802,83.01,0.00010143,2]
[339958203,1728221832823,133.98,0.00010143,2]
[339958204,1728221897864,150.0,0.00010105,2]
[339958205,1728221897885,100.0,0.00010105,2]
[339958206,1728221902633,50.0,0.00010105,2]
[339958207,1728221902657,150.0,0.00010105,2]
[339958208,1728221902678,20.71,0.00010105,2]
[339958209,1728221929942,150.0,8.219e-05,2]
[339958210,1728221929964,150.0,8.219e-05,2]
[339958211,1728221929985,150.0,8.219e-05,2]
[339958212,1728221930006,136.35,8.219e-05,2]
[339958213,1728221937741,150.0,0.00010088,2]
[339958214,1728222193108,150.0,0.00021,90]
[339958215,1728222200284,150.0,0.00010075,2]
[339958216,1728222200305,150.0,0.00010075,2]
[339958217,1728222200326,91.62,0.00010075,2]
[339958218,1728222254151,150.0,0.00010075,2]
[339958219,1728222293207,562.36777451,0.00021999,120]
[339958220,1728222300077,415.3,0.00022,120]
[339958222,1728222407312,150.0,0.0001009,2]
[339958223,1728222407337,100.0,0.0001009,2]
[339958224,1728222488535,-220.71,0.00010239,2]
[339958225,1728222489725,557.03,8.321e-05,2]
[339958226,1728222561647,150.0,0.00010111,2]
[339958227,1728222561668,150.0,0.00010111,2]
[339958228,1728222561688,150.0,0.00010111,2]
[339958229,1728222561710,150.0,0.00010111,2]
[339958230,1728222561733,150.0,0.00010111,2]
[339958231,1728222561756,246.7960951,0.00010111,2]
[339958232,1728222561779,3.2039049,0.00010111,2]
[339958242,1728222579698,150.0,0.0001013,2]
[339958243,1728222579720,150.0,0.0001013,2]
[339958248,1728222632179,-1073.514474,0.00010531,2]
[339958249,1728222632189,-557.03,0.00010585,2]
[339958250,1728222632198,-800.0,0.00010617,2]
[339958251,1728222632208,-213.782818,0.00010685,2]
[339958252,1728222632217,-167.898229,0.00010685,2]
[339958253,1728222632226,-513.76,0.00010709,2]
[339958254,1728222632237,-150.0,0.00010795,2]
[339958255,1728222632247,-213.782818,0.00010818,2]
[339958256,1728222632257,-167.898229,0.00010818,2]
[339958257,1728222632266,-283.03492284,0.000109,2]
[339958258,1728222632275,-403.95265656,0.000109,2]
[339958259,1728222632285,-213.782818,0.00010952,2]
[339958260,1728222632294,-167.898229,0.00010952,2]
[339958261,1728222632303,-499.99,0.00010952,2]
[339958262,1728222632312,-300.0,0.00010958,2]
[339958263,1728222632322,-200.0,0.00010959,2]
[339958264,1728222632332,-160.87,0.00010959,2]
[339958265,1728222632343,-250.0,0.00010959,2]
[339958266,1728222632353,-163.86,0.00010959,2]
[339958267,1728222632362,-1192.77,0.00010959,2]
[339958268,1728222632372,-626.0,0.00010989,2]
[339958269,1728222632384,-579.628,0.00010989,2]
[339958270,1728222632393,-372.437,0.00010989,2]
[339958271,1728222632402,-277.17,0.00010989,2]
[339958272,1728222632412,-150.0,0.00010989,2]
[339958273,1728222632422,-150.0,0.00010989,2]
[339958274,1728222632431,-1301.1547128,0.00010992,2]
[339958275,1728222632441,-1222.3255281,0.00010992,2]
[339958276,1728222632450,-1143.4963433,0.00010992,2]
[339958277,1728222632459,-1064.6671586,0.00010992,2]
[339958279,1728222632469,-985.8379738,0.00010992,2]
[339958281,1728222632478,-292.1210527,0.00010992,2]
[339958283,1728222632487,-363.4947125,0.00010992,2]
[339958285,1728222632497,-434.8683723,0.00010992,2]
[339958287,1728222632505,-506.2420321,0.00010992,2]
[339958289,1728222632514,-577.6156919,0.00010992,2]
[339958291,1728222632523,-1379.9838976,0.00010995,2]
[339958293,1728222632532,-160.62877041,0.00010999,2]
[339958295,1728222632541,-154.048,0.00010999,2]
[339958296,1728222632550,-210.54715157,0.00010999,2]
[339958297,1728222632559,-265.31186133,0.00010999,2]
[339958298,1728222632568,-500.0,0.00010999,2]
[339958299,1728222632576,-500.0,0.00010999,2]
[339958300,1728222632585,-350.0,0.00010999,2]
[339958301,1728222632594,-490.56393356,0.00010999,2]
[339958302,1728222632603,-2064.72,0.00010999,2]
[339958303,1728222632612,-36746.53592207,0.00011,2]
[339958304,1728222632624,-81256.23811037,0.00011,2]
[339958305,1728222632634,-30919.13793319,0.00011,2]
[339958306,1728222632647,-286.18192272,0.00011,2]
[339958307,1728222632659,-292.7217292,0.00011,2]
[339958308,1728222632705,-8732.73311404,0.00011,2]
[339958309,1728222632723,-15100.48,0.00011,2]
[339958589,1728222643273,-1158.49776583,0.00010439,2]
[339958591,1728222643282,-150.0,0.00010989,2]
[339958593,1728222643291,-2696.56483417,0.00011,2]
[339958595,1728222643307,-2519.35964944,0.00011,2]
[339959325,1728223033323,204.85,0.00010221,2]
[339959326,1728223098820,200.0,0.0001019,2]
[339959327,1728223148689,579.09,8.269e-05,2]
[339959328,1728223196045,300.0,0.00010187,2]
[339959329,1728223241176,150.0,0.0001014,2]
[339959330,1728223241196,150.0,0.0001014,2]
[339959331,1728223241218,150.0,0.0001014,2]
[339959332,1728223241240,150.0,0.0001014,2]
[339959333,1728223241261,150.0,0.0001014,2]
[339959334,1728223241281,278.44,0.0001014,2]
[339959335,1728223241304,8314.53,0.0001014,2]
[339959337,1728223295648,411.0,0.00010162,2]
[339959339,1728223483900,1028.44,0.0001016,2]
[339959340,1728223578785,288.0,0.00022,120]
[339959341,1728223593091,840.0,0.00010145,2]
[339959342,1728223596276,255.0,0.00021,90]
[339959343,1728223611787,222.0,0.00015,30]
[339959344,1728223682036,550.13,8.636e-05,2]
[339959365,1728223832252,-236.66,0.00010255,2]
[339959366,1728223832262,-200.027,0.00010431,2]
[339959367,1728223832272,-204.08775726,0.00010537,2]
[339959368,1728223832367,-109.20224274,0.00010537,2]
[339959369,1728223832377,-216.7,0.00010669,2]
[339959370,1728223832387,-186.465313,0.00010685,2]
[339959371,1728223832396,-300.0,0.00010899,2]
[339959372,1728223832406,-550.13,0.000109,2]
[339959373,1728223832415,-167.70630498,0.000109,2]
[339959374,1728223832426,-263.89670536,0.000109,2]
[339959375,1728223832435,-155.94268703,0.000109,2]
[339959376,1728223832444,-613.03198963,0.000109,2]
[339959377,1728223832456,-3440.6158923,0.000109,2]
[339959378,1728223832467,-520.90262637,0.000109,2]
[339959379,1728223832478,-662.15806401,0.000109,2]
[339959384,1728223838543,-1931.37983116,0.000109,2]
[339959385,1728223838552,-192.56451016,0.000109,2]
[339959386,1728223838561,-269.30177104,0.000109,2]
[339959387,1728223838570,-500.0,0.00010911,2]
[339959388,1728223838579,-185.23712507,0.00010912,2]
[339959389,1728223838600,-283.26995066,0.00010912,2]
[339959485,1728223840251,-31.49292427,0.00010912,2]
[339959486,1728223840260,-499.99,0.00010958,2]
[339959487,1728223840269,-162.08,0.00010959,2]
[339959488,1728223840278,-250.0,0.00010959,2]
[339959489,1728223840287,-996.44,0.00010959,2]
[339959490,1728223840296,-162.01,0.00010959,2]
[339959491,1728223840305,-383.749,0.00010989,2]
[339959492,1728223840314,-250.0,0.00010995,2]
[339959493,1728223840323,-252.838,0.00010999,2]
[339959494,1728223840333,-195.85,0.00010999,2]
[339959495,1728223840342,-150.0,0.00010999,2]
[339959496,1728223840351,-18529.72145298,0.00011,2]
[339959763,1728223843544,-96522.98322865,0.00011,2]
[339959765,1728223843554,-535667.76294775,0.00011,2]
[339959835,1728223846354,-273.19526149,0.00010912,2]
[339959838,1728223899020,4040.4468,0.00010155,2]
[339959839,1728224252576,511.36,8.728e-05,2]
[339959840,1728224502357,250.0,0.00010204,2]
[339959841,1728224597197,500.0,0.00010122,2]
[339959842,1728224786032,485.79,8.716e-05,2]
[339959843,1728224786389,-213.92,0.00010235,2]
[339959844,1728224786419,-1000.0,0.00010622,2]
[339959845,1728224786450,-300.0,0.00010899,2]
[339959846,1728224786479,-211.11736428,0.000109,2]
[339959847,1728224786508,-1000.0,0.000109,2]
[339959848,1728224786538,-179.53451402,0.000109,2]
[339959849,1728224786557,-213.92,0.000109,2]
[339959850,1728224786568,-1000.0,0.000109,2]
[339959851,1728224786583,-300.0,0.000109,2]
[339959852,1728224786599,-211.11736428,0.000109,2]
[339959853,1728224786610,-774.96263572,0.000109,2]
[339959854,1728224786619,-225.03736428,0.000109,2]
[339959855,1728224786630,-179.53451402,0.000109,2]
[339959856,1728224786641,-370.21218088,0.000109,2]
[339959857,1728224786650,-162.18,0.00010959,2]
[339959858,1728224786660,-250.0,0.00010959,2]
[339959859,1728224786669,-485.79,0.0001098,2]
[339959860,1728224786679,-202.27,0.00010999,2]
[339959861,1728224786689,-150.0,0.00010999,2]
[339959862,1728224786698,-388.40406252,0.00011,2]
[339959863,1728224842096,-307.11088026,0.000108,2]
[339959864,1728224864405,-654.11163756,0.000108,2]
[339959865,1728224864425,-654.11163756,0.000109,2]
[339959866,1728224864436,-5242.77672488,0.000109,2]
[339959868,1728224905902,-706.65453644,0.000109,2]
[339959869,1728224905934,-4012.69092712,0.00010947,2]
[339959870,1728224905951,-706.65453644,0.00010947,2]
[339959871,1728224905962,-4431.65453644,0.00010947,2]
[339959872,1728224905972,-111.58593748,0.00011,2]
[339959873,1728224905981,-4607.75952608,0.00011,2]
[339959879,1728225022067,-328.8,0.00010705,2]
[339959880,1728225022089,-160.87,0.00010959,2]
[339959881,1728225022113,-11363.245,0.00010989,2]
[339959882,1728225022134,-809.0,0.00010989,2]
[339959883,1728225022155,-1082.0,0.00010989,2]
[339959884,1728225022176,-934.0,0.00010989,2]
[339959885,1728225022198,-559.0,0.00010989,2]
[339959886,1728225022223,-12763.085,0.00011,2]
[339959891,1728225031431,-797.15,0.00010959,2]
[339959892,1728225031441,-280.80371307,0.00010989,2]
[339959893,1728225031529,-1.2607,0.00010989,2]
[339959894,1728225031543,-1308.0,0.00010989,2]
[339959895,1728225031555,-902.99942409,0.00010989,2]
[339959896,1728225031566,-576.02,0.00010989,2]
[339959897,1728225031578,-280.91616284,0.00010989,2]
[339959898,1728225031587,-1904.0,0.00010989,2]
[339959899,1728225031597,-554.0,0.00010989,2]
[339959900,1728225031608,-1632.04461166,0.00011,2]
[339959901,1728225031621,-110110.07133977,0.00011,2]
[339959902,1728225031630,-528036.19918929,0.00011,2]
[339959903,1728225031640,-444857.53914654,0.00011,2]
[339959917,1728225037507,-485.28526725,0.00011,2]
[339959918,1728225037520,-460.89263148,0.00011,2]
[339959919,1728225037531,-987.54270914,0.00011,2]
[339959920,1728225037543,-1082.14649661,0.00011,2]
[339959921,1728225037554,-5094.32,0.00011,2]
[339959922,1728225037566,-1522.63335757,0.00011,2]
[339959923,1728225037662,-2251.11664988,0.00011,2]
[339959924,1728225037748,-11676.78754871,0.00011,2]
[339959925,1728225037759,-6753.51311033,0.00011,2]
[339959926,1728225037770,-688.5,0.00011,2]
[339959927,1728225037829,-1629.83238255,0.00011,2]
[339959928,1728225037840,-1145.19149778,0.00011,2]
[339959929,1728225037851,-362.78211077,0.00011,2]
[339959930,1728225037863,-324.99651763,0.00011,2]
[339959931,1728225037873,-1288.49467945,0.00011,2]
[339959932,1728225037884,-4729.0105623,0.00011,2]
[339959933,1728225037935,-2554.34123814,0.00011,2]
[339959934,1728225037947,-31656.84344985,0.00011,2]
[339959945,1728225039426,-55974.11878221,0.00011,2]
[339959946,1728225039437,-38021.74817622,0.00011,2]
[339959947,1728225039526,-521.59343028,0.00011,2]
[339959948,1728225039619,-453.16590618,0.00011,2]
[339959971,1728225040057,-2809.89847193,0.00011,2]
[339959974,1728225040067,-565.83517981,0.00011,2]
[339959997,1728225042650,-1597.49534063,0.00010989,2]
[339960001,1728225045593,-301.50465937,0.00010989,2]
[339960002,1728225045603,-806.0,0.00010989,2]
[339960003,1728225045612,-1943.24534063,0.00011,2]
[339960004,1728225045738,-128421.87940769,0.00011,2]
[339960006,1728225279459,437.21,8.734e-05,2]
[339960008,1728225590286,150.0,0.00010128,2]
[339960009,1728225590306,100.63,0.00010128,2]
[339960010,1728225621403,150.0,0.00010145,2]
[339960011,1728225621424,100.0,0.00010145,2]
[339960012,1728225791330,150.0,0.00010184,2]
[339960013,1728225791352,150.0,0.00010184,2]
[339960014,1728225791373,150.0,0.00010184,2]
[339960015,1728225791394,150.0,0.00010184,2]
[339960016,1728225791414,150.0,0.00010184,2]
[339960017,1728225791435,50.0,0.00010184,2]
[339960018,1728225884581,150.0,8.219e-05,2]
[339960019,1728225884603,150.0,8.219e-05,2]
[339960020,1728225884625,136.44,8.219e-05,2]
[339960022,1728226115111,150.0,0.0001017,2]
[339960023,1728226115133,21.13,0.0001017,2]
[339960028,1728226231597,-436.44,0.00010483,2]
[339960029,1728226231607,-278.13,0.00010535,2]
[339960030,1728226231617,-200.0,0.00010635,2]
[339960031,1728226231627,-213.782819,0.00010685,2]
[339960032,1728226231636,-187.666515,0.00010685,2]
[339960033,1728226231645,-14577.41148947,0.00010685,2]
[339960034,1728226231655,-168.89389144,0.000109,2]
[339960035,1728226231665,-6814.29985405,0.000109,2]
[339960036,1728226231677,-450.65768868,0.000109,2]
[339960037,1728226231690,-396.47606515,0.000109,2]
[339960038,1728226231702,-187.666515,0.00010952,2]
[339960039,1728226231715,-161.71,0.00010959,2]
[339960040,1728226231727,-480.62284037,0.00010959,2]
[339960041,1728226234650,-157.09715963,0.00010959,2]
[339960042,1728226234663,-250.0,0.00010959,2]
[339960043,1728226234675,-650.82442223,0.00010959,2]
[339960044,1728226234689,-166.07557777,0.00010959,2]
[339960045,1728226234699,-499.99,0.00010973,2]
[339960046,1728226234709,-299.99,0.00010973,2]
[339960047,1728226234721,-500.0,0.00010973,2]
[339960048,1728226234732,-564.8212458,0.00010973,2]
[339960049,1728226234744,-161.816,0.00010999,2]
[339960050,1728226234755,-150.0,0.00010999,2]
[339960052,1728226234768,-500.0,0.00010999,2]
[339960054,1728226234780,-500.0,0.00010999,2]
[339960055,1728226234793,-383.05972127,0.00010999,2]
[339960056,1728226234806,-20038.27805516,0.00011,2]
[339960057,1728226234824,-90160.28499749,0.00011,2]
[339960058,1728226234836,-2904.07784435,0.00011,2]
[339960059,1728226234847,-1126.76469096,0.00011,2]
[339960061,1728226234857,-519672.81751822,0.00011,2]
[339960063,1728226234870,-148812.1225,0.00011,2]
[339960066,1728226234887,-352287.67073508,0.00011,2]
[339960067,1728226234899,-133588.3066818,0.00011,2]
[339960068,1728226234914,-689.30241408,0.00011,2]
[339960069,1728226234929,-16404.02422153,0.00011,2]
[339960070,1728226234940,-695.96577847,0.00011,2]
[339960082,1728226237753,-150.0,0.00010989,2]
[339960083,1728226237765,-18687.800817,0.00011,2]
[339960084,1728226237780,-1077.31009817,0.00011,2]
[339960085,1728226237799,-1097.04067655,0.00011,2]
[339960086,1728226237811,-976.19437236,0.00011,2]
[339960087,1728226237825,-1879.53,0.00011,2]
[339960105,1728226238115,-507.18351286,0.00011,2]
[339960127,1728226239763,-805.059219,0.00011,2]
[339960128,1728226239775,-1763.6146812,0.00011,2]
[339960129,1728226239786,-3055.94980667,0.00011,2]
[339960130,1728226239798,-512.35768892,0.00011,2]
[339960131,1728226239928,-446.8104,0.00011,2]
[339960132,1728226239940,-24505.0,0.00011,2]
[339960133,1728226240024,-313912.68569444,0.00011,2]
[339960270,1728226245790,-839.18183743,0.00011,2]
[339960271,1728226245801,-1224.875,0.00011,2]
[339960272,1728226245887,-3144.06343574,0.00011,2]
[339960292,1728226433121,2952.9,0.00022,120]
[339960293,1728226462570,150.0,0.00010194,2]
[339960294,1728226462594,50.0,0.00010194,2]
[339960295,1728226465159,162.43,0.00010174,2]
[339960296,1728226465425,163.62,0.00010174,2]
[339960297,1728226498667,150.0,8.219e-05,2]
[339960298,1728226498689,150.0,8.219e-05,2]
[339960299,1728226498710,150.0,8.219e-05,2]
[339960300,1728226498731,19.99,8.219e-05,2]
[339960303,1728226671250,250.0,0.00010112,2]
[339960304,1728226686466,150.0,0.00010099,2]
[339960305,1728226686488,113.04,0.00010099,2]
[339960306,1728226730489,150.0,0.00010099,2]
[339960307,1728226730509,38.16,0.00010099,2]
[339960308,1728226735058,614.38,0.00010088,2]
[339960309,1728226750904,150.0,0.000101,2]
[339960310,1728226753908,23890.0,0.000101,2]
[339960311,1728226762829,500.0,0.000101,2]
[339960312,1728226781899,250.0,0.000101,2]
[339960313,1728226817377,150.0,0.00010157,2]
[339960314,1728226817399,150.0,0.00010157,2]
[339960315,1728226817420,150.0,0.00010157,2]
[339960316,1728226817440,150.0,0.00010157,2]
[339960317,1728226817460,150.0,0.00010157,2]
[339960318,1728226817481,150.0,0.00010157,2]
[339960319,1728226817505,20915.55,0.00010157,2]
[339960320,1728226847419,150.0,0.00010065,2]
[339960321,1728226847442,150.0,0.00010065,2]
[339960322,1728226847464,209.6360951,0.00010065,2]
[339960323,1728226847487,130.3639049,0.00010065,2]
[339960324,1728226884628,19.6360951,0.00010054,2]
[339960325,1728226884649,150.0,0.00010054,2]
[339960326,1728226884670,45.0739049,0.00010054,2]
[339960327,1728226903480,104.9260951,0.00010066,2]
[339960328,1728226903502,150.0,0.00010066,2]
[339960329,1728226903522,150.0,0.00010066,2]
[339960330,1728226903543,170.63,0.00010066,2]
[339960331,1728226903565,200.0,0.00010066,2]
[339960332,1728226903589,1759.5239049,0.00010066,2]
[339960333,1728226927578,2716.39,0.00010057,2]
[339960334,1728226957618,190.93,0.00010057,2]
[339960335,1728226968204,4470.12,0.00010057,2]
[339960336,1728226970230,2595.2,0.00010069,2]
[339960337,1728226991217,468.99,8.219e-05,2]
[339960338,1728227064350,448.66,0.00010101,2]
[339960339,1728227201430,278.44,0.00010101,2]
[339960340,1728227403690,250.0,0.00010086,2]
[339960353,1728227431820,-468.99,0.00010481,2]
[339960354,1728227431830,-196.9,0.00010569,2]
[339960355,1728227431839,-800.0,0.00010617,2]
[339960356,1728227431849,-360.0,0.00010628,2]
[339960357,1728227431859,-186.465313,0.00010685,2]
[339960358,1728227431868,-280.6339,0.0001089,2]
[339960359,1728227431878,-168.89389142,0.000109,2]
[339960360,1728227431887,-7500.0,0.000109,2]
[339960361,1728227431897,-878.92620498,0.000109,2]
[339960362,1728227431908,-127.07379502,0.000109,2]
[339960363,1728227431918,-6333.65112347,0.000109,2]
[339960364,1728227431927,-150.0,0.00010903,2]
[339960365,1728227431937,-1635.099,0.00010904,2]
[339960366,1728227431947,-554.0,0.00010904,2]
[339960367,1728227431957,-1269.45608209,0.00010904,2]
[339960368,1728227431968,-2081.54391791,0.00010904,2]
[339960369,1728227431978,-1910.0,0.00010904,2]
[339960370,1728227431989,-807.0,0.00010904,2]
[339960371,1728227431999,-222.07,0.00010904,2]
[339960372,1728227432008,-4203.39,0.00010904,2]
[339960373,1728227432018,-2935.89,0.00010904,2]
[339960374,1728227432027,-1148.0,0.00010904,2]
[339960375,1728227432037,-4139.15277163,0.00010904,2]
[339960376,1728227432048,-1734.84722837,0.00010904,2]
[339960377,1728227432058,-150.0,0.00010904,2]
[339960378,1728227432068,-7348.557,0.00010904,2]
[339960379,1728227432077,-163.06,0.00010959,2]
[339960380,1728227432087,-582.73,0.00010959,2]
[339960381,1728227432096,-150.99,0.00010959,2]
[339960382,1728227432106,-160.88,0.00010959,2]
[339960383,1728227432116,-150.0,0.00010959,2]
[339960384,1728227432125,-499.99,0.00010959,2]
[339960385,1728227432134,-1154.78,0.00010959,2]
[339960386,1728227432144,-250.0,0.00010959,2]
[339960387,1728227432153,-251.51,0.00010959,2]
[339960388,1728227432162,-9117.06571212,0.00010978,2]
[339960389,1728227432173,-6260.0,0.00010978,2]
[339960390,1728227432193,-295.6043219,0.00010978,2]
[339960391,1728227432205,-627.5,0.00010978,2]
[339960392,1728227432222,-6278.0,0.00010978,2]
[339960393,1728227432236,-303.4456781,0.00010978,2]
[339960395,1728227432248,-32609.05107932,0.00010978,2]
[339960397,1728227432257,-161.816,0.00010988,2]
[339960398,1728227432266,-383.8714497,0.00010995,2]
[339960400,1728227432276,-266.7669785,0.00010995,2]
[339960402,1728227432286,-189.63472524,0.00010997,2]
[339960403,1728227432295,-37031.89459025,0.00011,2]
[339960405,1728227438059,-1173.98706814,0.00011,2]
[339960406,1728227438071,-2065.88764727,0.00011,2]
[339960407,1728227438093,-7096.92717308,0.00011,2]
[339960418,1728227438363,-10704.98242997,0.00011,2]
[339960420,1728227438374,-1960.96641546,0.00011,2]
[339960469,1728227439930,-6489.73990065,0.00011,2]
[339960470,1728227439942,-566.321382,0.00011,2]
[339960471,1728227439990,-64203.99984372,0.00011,2]
[339960472,1728227440169,-2201.041403,0.00011,2]
[339960515,1728227442913,-1116.65114218,0.00011,2]
[339960516,1728227443148,-57966.03426995,0.00011,2]
[339960526,1728227446045,-15670.99999997,0.00011,2]
[339960529,1728227541712,440.84,8.79e-05,2]
[339960530,1728227822740,23459.49,0.00010155,2]
[339960531,1728227892927,250.0,0.00010119,2]
[339960532,1728227895118,250.0,0.00010135,2]
[339960533,1728227903247,159.12,0.00010135,2]
[339960534,1728227986829,190.93,0.00010135,2]
[339960535,1728228016513,-1000.0,0.00010765,2]
[339960536,1728228016536,-300.0,0.000108,3]
[339960537,1728228016559,-700.0,0.000109,3]
[339960538,1728228016581,-5700.28601115,0.000109,2]
[339960539,1728228016602,-200.0,0.0001091,2]
[339960540,1728228016623,-664.19884981,0.0001091,2]
[339960541,1728228016646,-300.0,0.00010958,2]
[339960542,1728228016668,-150.0,0.00010959,2]
[339960543,1728228016690,-163.38,0.00010959,2]
[339960544,1728228016713,-250.0,0.00010959,2]
[339960545,1728228016734,-572.13513904,0.00010959,2]
[339960546,1728228017516,-2440.80486096,0.00010959,2]
[339960547,1728228017537,-162.4314796,0.00010973,2]
[339960548,1728228017559,-222.3058154,0.00010995,2]
[339960549,1728228017582,-522.5358442,0.00010995,2]
[339960550,1728228017604,-499.99,0.00010995,2]
[339960551,1728228017626,-150.0,0.00010999,2]
[339960552,1728228017647,-161.816,0.00010999,2]
[339960553,1728228017672,-5840.11599984,0.00011,2]
[339960554,1728228018659,-10000.0,0.00011,2]
[339960555,1728228019529,-10000.0,0.00011,2]
[339960556,1728228020445,-10000.0,0.00011,2]
[339960557,1728228022567,-10000.0,0.00011,2]
[339960558,1728228027883,-3745.0,0.00011,2]
[339960559,1728228043481,418.79,9.108e-05,2]
[339960560,1728228166605,3030.14,0.00022,120]
[339960561,1728228266505,2655.63573,0.0001,2]
[339960563,1728228415898,250.0,0.00010175,2]
[339960589,1728228592723,210.43,0.00010132,2]
[339960591,1728228631918,-300.0,0.000106,3]
[339960592,1728228631927,-600.0,0.000107,3]
[339960593,1728228631936,-900.0,0.000108,3]
[339960594,1728228631946,-168.89389142,0.000109,2]
[339960596,1728228631957,-282.52870576,0.000109,2]
[339960599,1728228632056,-498.99089424,0.000109,2]
[339960600,1728228632191,-1200.0,0.000109,3]
[339960601,1728228632204,-253.81698993,0.000109,2]
[339960602,1728228632214,-150.0,0.000109,2]
[339960603,1728228632223,-150.0,0.000109,2]
[339960604,1728228632232,-150.0,0.000109,2]
[339960605,1728228632242,-150.0,0.000109,2]
[339960606,1728228632252,-754.75,0.000109,2]
[339960607,1728228632262,-150.0,0.000109,2]
[339960608,1728228632273,-150.0,0.000109,2]
[339960609,1728228632282,-189.0988902,0.000109,2]
[339960610,1728228632292,-150.0,0.000109,2]
[339960611,1728228632301,-150.0,0.000109,2]
[339960612,1728228632311,-150.0,0.000109,2]
[339960613,1728228632321,-754.75,0.000109,2]
[339960614,1728228632330,-174.06460703,0.000109,2]
[339960615,1728228632340,-171.13,0.00010929,2]
[339960616,1728228632349,-150.0,0.00010958,2]
[339960617,1728228632359,-161.57,0.00010959,2]
[339960618,1728228632369,-250.0,0.00010959,2]
[339960619,1728228632378,-502.46,0.00010959,2]
[339960620,1728228632388,-161.71,0.00010959,2]
[339960621,1728228632397,-157.26,0.00010959,2]
[339960622,1728228632407,-786.33,0.00010959,2]
[339960623,1728228632416,-415.89700425,0.00010973,2]
[339960624,1728228632426,-185.2548462,0.00010995,2]
[339960625,1728228632439,-499.99,0.00010995,2]
[339960626,1728228632448,-588.2108966,0.00010995,2]
[339960627,1728228632459,-3973.43468881,0.00010998,2]
[339960628,1728228632468,-150.01,0.00010999,2]
[339960629,1728228632479,-334.43549302,0.00010999,2]
[339960630,1728228632489,-500.0,0.00010999,2]
[339960631,1728228632499,-500.0,0.00010999,2]
[339960632,1728228632508,-500.0,0.00010999,2]
[339960633,1728228632520,-500.0,0.00010999,2]
[339960634,1728228632530,-500.0,0.00010999,2]
[339960635,1728228632540,-500.0,0.00010999,2]
[339960636,1728228632550,-341.59428465,0.00010999,2]
[339960637,1728228632560,-235.65727592,0.00010999,2]
[339960638,1728228632570,-346.96109019,0.00010999,2]
[339960639,1728228632580,-500.0,0.00010999,2]
[339960640,1728228632589,-394.9380713,0.00010999,2]
[339960641,1728228632601,-105.0619287,0.00010999,2]
[339960642,1728228632610,-500.0,0.00010999,2]
[339960643,1728228632620,-500.0,0.00010999,2]
[339960644,1728228632630,-500.0,0.00010999,2]
[339960645,1728228632640,-500.0,0.00010999,2]
[339960646,1728228632649,-251.00697394,0.00010999,2]
[339960647,1728228632659,-500.0,0.00010999,2]
[339960648,1728228632668,-500.0,0.00010999,2]
[339960649,1728228632677,-5522.59727492,0.00011,2]